fUST/lending_fUST_20250718
["ID","MTS","AMOUNT","RATE_DAILY","PERIOD"]
[373058166,1752849058712,-460.0,0.000207,2]
[373058167,1752849058727,-1443.93,0.000207,2]
[373058170,1752849058736,-3883.56,0.000207,2]
[373058171,1752849058746,-1381.69,0.000207,2]
[373058173,1752849058755,-500.0,0.0002072,2]
[373058176,1752849058766,-500.0,0.0002072,2]
[373058177,1752849058776,-151.0,0.00020739,2]
[373058179,1752849058785,-151.0,0.00020739,2]
[373058181,1752849058796,-151.0,0.00020739,2]
[373058184,1752849058805,-151.0,0.00020739,2]
[373058186,1752849058815,-164.821622,0.00020739,2]
[373058187,1752849058824,-157.016901,0.00020739,2]
[373058190,1752849058836,-157.016901,0.00020739,2]
[373058192,1752849058845,-151.785227,0.00020739,2]
[373058194,1752849058856,-229.090139,0.00020739,2]
[373058196,1752849058865,-494.691019,0.00020739,2]
[373058198,1752849058874,-55635.51773999,0.00020739,2]
[373058199,1752849058884,-494.691019,0.00020739,2]
[373058201,1752849058893,-151.0,0.00020739,2]
[373058204,1752849058903,-223.470442,0.00020739,2]
[373058206,1752849058912,-223.470442,0.00020739,2]
[373058208,1752849058922,-151.0,0.000208,2]
[373058210,1752849058932,-151.0,0.000208,2]
[373058212,1752849058941,-151.0,0.000208,2]
[373058213,1752849058951,-217.409418,0.000208,2]
[373058216,1752849058961,-217.409418,0.000208,2]
[373058225,1752849059047,-151.0,0.000208,2]
[373058227,1752849059058,-318.462048,0.000208,2]
[373058229,1752849059068,-318.462048,0.000208,2]
[373058231,1752849059079,-476.25663856,0.000208,3]
[373058234,1752849059088,-160.0,0.000208,3]
[373058236,1752849059098,-1296.99250028,0.000208,3]
[373058251,1752849059238,-4016.78154657,0.000208,3]
[373058253,1752849059251,-567.95000424,0.000208,3]
[373058663,1752849064138,-6728.71584313,0.000208,3]
[373058664,1752849064149,-214.4881157,0.000208,3]
[373058666,1752849064263,-1449.78,0.0002087,2]
[373058668,1752849064275,-564.89,0.00020872,2]
[373058670,1752849064285,-1959.0,0.00020872,2]
[373058672,1752849064295,-4077.21,0.00020872,2]
[373058674,1752849064304,-1343.08,0.00020872,2]
[373058676,1752849064315,-355.17,0.00020872,2]
[373058678,1752849064324,-460.0,0.00020874,2]
[373058680,1752849064337,-460.0,0.00020874,2]
[373058682,1752849064346,-648.75,0.00020874,2]
[373058684,1752849064355,-488.61,0.00020874,2]
[373058686,1752849064364,-1232.005147,0.00020902,8]
[373058688,1752849064374,-500.0,0.0002092,2]
[373058690,1752849064383,-800.0,0.00020954,2]
[373058692,1752849064393,-10294.95160574,0.00020958,2]
[373058695,1752849064415,-256.24136673,0.0001649,2]
[373058700,1752849064449,-931.16863327,0.0001649,2]
[373058702,1752849064459,-1187.41,0.00016764,2]
[373058704,1752849064469,-392.03768436,0.00017681,2]
[373058715,1752849064565,-460.0,0.00016585,2]
[373058717,1752849064574,-202.38562027,0.00016859,2]
[373058719,1752849064588,-257.61437973,0.00016859,2]
[373058721,1752849064598,-182.38562027,0.00017038,2]
[373058723,1752849064610,-1005.02437973,0.00017038,2]
[373058725,1752849064619,-162.39562027,0.00017312,2]
[373058727,1752849064631,-1025.01437973,0.00017312,2]
[373058729,1752849064641,-1187.41,0.00017586,2]
[373058730,1752849064651,-67.96231564,0.00017681,2]
[373058732,1752849064660,-1187.41,0.0001786,2]
[373058734,1752849064670,-500.0,0.00017957,2]
[373058735,1752849064680,-500.0,0.00018231,2]
[373058736,1752849064690,-500.0,0.00018505,2]
[373058738,1752849064699,-500.0,0.00018779,2]
[373058740,1752849064709,-500.0,0.00019053,2]
[373058742,1752849064722,-500.0,0.00019327,2]
[373058743,1752849064732,-500.0,0.00019601,2]
[373058744,1752849064741,-1949.51818756,0.00020958,2]
[373058745,1752849064943,-17.95499433,0.00016584,2]
[373058746,1752849064956,-442.04500567,0.00016584,2]
[373058747,1752849064965,-435.67079829,0.00017133,2]
[373058748,1752849065124,-301.53775025,0.0001649,2]
[373058749,1752849065139,-158.46224975,0.0001649,2]
[373058750,1752849065149,-279.20533809,0.0001649,2]
[373058751,1752849065161,-180.79466191,0.0001649,2]
[373058752,1752849065170,-225.43919598,0.00016584,2]
[373058840,1752849091353,2181.9005249,0.0001595,2]
[373058845,1752849121032,23903.2863947,0.00015711,2]
[373058859,1752849224384,295.65584,0.00015537,2]
[373058874,1752849309611,207.79985385,0.0001639,2]
[373058875,1752849352979,646.9579158,0.00015537,2]
[373058876,1752849383185,333.276326,0.00013699,2]
[373058880,1752849571403,233.77483559,0.0001639,2]
[373058883,1752849651223,150.0,0.00015307,2]
[373058888,1752849737032,199.4134281,0.00015513,2]
[373058898,1752849831396,204.55298115,0.00016388,2]
[373058909,1752850048149,-460.0,0.00016486,2]
[373058910,1752850048175,-421.57408049,0.00016486,2]
[373058911,1752850075421,74249.282845,0.000163,2]
[373058912,1752850091620,230.93382196,0.00016387,2]
[373058914,1752850165316,-460.0,0.00016486,2]
[373058915,1752850165339,-460.0,0.00016486,2]
[373058916,1752850165361,-460.0,0.00016486,2]
[373058917,1752850165383,-460.0,0.00016486,2]
[373058918,1752850165404,-460.0,0.00016487,2]
[373058919,1752850165426,-460.0,0.00016487,2]
[373058920,1752850165447,-460.0,0.00016487,2]
[373058921,1752850165470,-460.0,0.00016487,2]
[373058922,1752850165493,-460.0,0.00016487,2]
[373058923,1752850165514,-460.0,0.00016487,2]
[373058924,1752850165537,-460.0,0.00016487,2]
[373058925,1752850165559,-400.18269116,0.00016487,2]
[373058926,1752850165580,-460.0,0.00016487,2]
[373058927,1752850165601,-460.0,0.00016487,2]
[373058928,1752850165622,-460.0,0.00016487,2]
[373058929,1752850165644,-460.0,0.00016487,2]
[373058930,1752850165666,-460.0,0.00016487,2]
[373058931,1752850165688,-460.0,0.00016487,2]
[373058932,1752850165710,-460.0,0.00016487,2]
[373058933,1752850165731,-218.94040013,0.00016487,2]
[373058934,1752850165753,-460.0,0.00016487,2]
[373058935,1752850165774,-460.0,0.00016487,2]
[373058936,1752850165799,-500.0,0.00016487,2]
[373058937,1752850165822,-460.0,0.00016487,2]
[373058938,1752850165844,-460.0,0.00016487,2]
[373058939,1752850165867,-601.96585045,0.00016487,2]
[373058940,1752850165890,-535.46,0.00016487,2]
[373058941,1752850165912,-460.0,0.00016487,2]
[373058942,1752850165936,-178.373,0.00016487,2]
[373058943,1752850165958,-460.0,0.00016487,2]
[373058944,1752850165979,-460.0,0.00016487,2]
[373058945,1752850166002,-460.0,0.00016487,2]
[373058946,1752850166168,-389.04598075,0.00016487,2]
[373058947,1752850166192,-460.0,0.00016487,2]
[373058948,1752850166216,-460.0,0.00016487,2]
[373058949,1752850166242,-910.7,0.00016487,2]
[373058950,1752850166265,-460.0,0.00016487,2]
[373058951,1752850166293,-987.95,0.00016487,2]
[373058952,1752850166321,-234.56080402,0.00016487,2]
[373058953,1752850166344,-460.0,0.00016487,2]
[373058954,1752850166368,-460.0,0.00016487,2]
[373058955,1752850166393,-460.0,0.00016487,2]
[373058956,1752850166417,-460.0,0.00016487,2]
[373058957,1752850166441,-460.0,0.00016487,2]
[373058958,1752850166468,-460.0,0.00016487,2]
[373058959,1752850166492,-460.0,0.00016487,2]
[373058960,1752850166515,-460.0,0.00016487,2]
[373058961,1752850166540,-460.0,0.00016487,2]
[373058962,1752850166564,-460.0,0.00016487,2]
[373058963,1752850166588,-460.0,0.00016487,2]
[373058964,1752850166612,-460.0,0.00016487,2]
[373058965,1752850166638,-582.19,0.00016487,2]
[373058966,1752850166662,-463.30864532,0.00016487,2]
[373058967,1752850166687,-460.0,0.00016487,2]
[373058968,1752850166711,-466.15166201,0.00016487,2]
[373058969,1752850166736,-460.0,0.00016487,2]
[373058970,1752850166762,-460.0,0.00016487,2]
[373058971,1752850166788,-460.0,0.00016487,2]
[373058972,1752850166814,-460.0,0.00016487,2]
[373058973,1752850166839,-460.0,0.00016487,2]
[373058974,1752850166863,-460.0,0.00016487,2]
[373058975,1752850166888,-460.0,0.00016487,2]
[373058976,1752850166912,-460.0,0.00016487,2]
[373058977,1752850166937,-460.0,0.00016487,2]
[373058978,1752850166962,-2937.29,0.00016487,2]
[373058979,1752850166988,-460.0,0.00016487,2]
[373058980,1752850167013,-460.0,0.00016487,2]
[373058981,1752850167046,-460.0,0.00016487,2]
[373058982,1752850167071,-460.0,0.00016487,2]
[373058983,1752850167097,-460.0,0.00016487,2]
[373058984,1752850167122,-460.0,0.00016487,2]
[373058985,1752850167149,-2129.85,0.00016487,2]
[373058986,1752850167174,-460.0,0.00016487,2]
[373058987,1752850167198,-460.0,0.00016487,2]
[373058988,1752850167224,-469.29,0.00016487,2]
[373058989,1752850167249,-460.0,0.00016487,2]
[373058990,1752850167272,-460.0,0.00016487,2]
[373058991,1752850167296,-460.0,0.00016487,2]
[373058992,1752850167320,-460.0,0.00016487,2]
[373058993,1752850167345,-1400.5,0.00016487,2]
[373058994,1752850167368,-460.0,0.00016487,2]
[373058995,1752850167393,-460.0,0.00016487,2]
[373058996,1752850167417,-460.0,0.00016487,2]
[373058997,1752850167441,-460.0,0.00016487,2]
[373058998,1752850167464,-349.93587836,0.00016487,2]
[373058999,1752850167488,-460.0,0.00016487,2]
[373059000,1752850167515,-378.31908017,0.00016487,2]
[373059001,1752850208706,295.65584,0.00015537,2]
[373059065,1752850232741,-109.9577499,0.00016486,2]
[373059066,1752850232753,-244.33961088,0.00016486,2]
[373059068,1752850232762,-460.0,0.00016486,2]
[373059070,1752850232771,-1007.19,0.00016486,2]
[373059072,1752850232782,-26.29310623,0.00016486,2]
[373059197,1752850239193,-433.70689377,0.00016486,2]
[373059200,1752850239203,-95.19019741,0.00016486,2]
[373059206,1752850239305,-204.80980259,0.00016486,2]
[373059207,1752850239315,-81.68091983,0.00016487,2]
[373059208,1752850239324,-460.0,0.00016487,2]
[373059209,1752850239334,-460.0,0.00016487,2]
[373059210,1752850239345,-460.0,0.00016487,2]
[373059211,1752850239355,-3292.84,0.00016487,2]
[373059212,1752850239364,-261.88021253,0.00016487,2]
[373059213,1752850239373,-460.0,0.00016487,2]
[373059214,1752850239383,-460.0,0.00016487,2]
[373059215,1752850239392,-460.0,0.00016487,2]
[373059216,1752850239402,-460.0,0.00016487,2]
[373059217,1752850239410,-381.90173859,0.00016487,2]
[373059218,1752850239420,-460.0,0.00016487,2]
[373059219,1752850239430,-460.0,0.00016487,2]
[373059220,1752850239439,-460.0,0.00016487,2]
[373059221,1752850239449,-460.0,0.00016487,2]
[373059222,1752850239458,-460.0,0.00016487,2]
[373059223,1752850239467,-471.97041884,0.00016487,2]
[373059224,1752850239477,-460.0,0.00016487,2]
[373059225,1752850239487,-460.0,0.00016487,2]
[373059226,1752850239496,-460.0,0.00016487,2]
[373059227,1752850239505,-939.17,0.00016487,2]
[373059228,1752850239514,-460.0,0.00016487,2]
[373059229,1752850239523,-460.0,0.00016487,2]
[373059230,1752850239533,-460.0,0.00016487,2]
[373059231,1752850239542,-460.0,0.00016487,2]
[373059232,1752850239551,-460.0,0.00016487,2]
[373059233,1752850239561,-460.0,0.00016487,2]
[373059234,1752850239571,-460.0,0.00016487,2]
[373059235,1752850239581,-460.0,0.00016487,2]
[373059236,1752850239592,-460.0,0.00016488,2]
[373059237,1752850239602,-465.76679733,0.00016488,2]
[373059238,1752850239612,-460.0,0.00016488,2]
[373059239,1752850239622,-460.0,0.00016488,2]
[373059240,1752850239631,-460.0,0.00016488,2]
[373059241,1752850239641,-460.0,0.00016488,2]
[373059242,1752850239650,-460.0,0.00016488,2]
[373059243,1752850239659,-460.0,0.00016488,2]
[373059244,1752850239670,-460.0,0.00016488,2]
[373059245,1752850239679,-460.0,0.00016488,2]
[373059246,1752850239688,-460.0,0.00016488,2]
[373059247,1752850239698,-460.0,0.00016488,2]
[373059248,1752850239711,-460.0,0.00016488,2]
[373059249,1752850239721,-460.0,0.00016488,2]
[373059250,1752850239732,-460.0,0.00016488,2]
[373059251,1752850239743,-460.0,0.00016488,2]
[373059252,1752850239753,-460.0,0.00016488,2]
[373059253,1752850239763,-460.0,0.00016488,2]
[373059254,1752850239773,-460.0,0.00016488,2]
[373059255,1752850239784,-460.0,0.00016488,2]
[373059256,1752850239793,-2981.57,0.00016488,2]
[373059257,1752850239803,-1644.89,0.00016488,2]
[373059258,1752850239813,-351.47,0.00016488,2]
[373059259,1752850239823,-691.94,0.00016488,2]
[373059260,1752850239832,-460.0,0.00016488,2]
[373059261,1752850239844,-506.74,0.00016488,2]
[373059262,1752850239853,-460.0,0.00016488,2]
[373059263,1752850239863,-460.0,0.00016488,2]
[373059264,1752850239872,-460.0,0.00016488,2]
[373059265,1752850239882,-460.0,0.00016488,2]
[373059266,1752850239891,-460.0,0.00016488,2]
[373059267,1752850239900,-460.0,0.00016489,2]
[373059268,1752850239910,-460.0,0.00016489,2]
[373059269,1752850239919,-460.0,0.00016489,2]
[373059270,1752850239929,-460.0,0.00016489,2]
[373059271,1752850240074,-460.0,0.00016489,2]
[373059272,1752850240084,-460.0,0.00016489,2]
[373059273,1752850240095,-377.55114959,0.00016489,2]
[373059274,1752850240105,-460.0,0.0001649,2]
[373059275,1752850240114,-460.0,0.0001649,2]
[373059276,1752850240123,-559.65155913,0.0001649,2]
[373059277,1752850240134,-460.0,0.0001649,2]
[373059278,1752850240143,-460.0,0.0001649,2]
[373059279,1752850240152,-460.0,0.0001649,2]
[373059280,1752850240161,-460.0,0.0001649,2]
[373059281,1752850240174,-460.0,0.0001649,2]
[373059282,1752850240183,-460.0,0.0001649,2]
[373059283,1752850240193,-440.76451204,0.0001649,2]
[373059284,1752850240202,-460.0,0.0001649,2]
[373059285,1752850240212,-460.0,0.0001649,2]
[373059286,1752850240222,-460.0,0.0001649,2]
[373059287,1752850240232,-518.16736314,0.0001649,2]
[373059288,1752850240242,-460.0,0.0001649,2]
[373059289,1752850240251,-460.0,0.0001649,2]
[373059290,1752850240261,-496.19406,0.0001649,2]
[373059291,1752850240271,-926.62,0.0001649,2]
[373059292,1752850240282,-460.0,0.00016584,2]
[373059293,1752850240291,-460.0,0.00016584,2]
[373059294,1752850240301,-460.0,0.00016584,2]
[373059295,1752850240311,-43.49284634,0.00016584,2]
[373059296,1752850240324,-419.69255579,0.00016584,2]
[373059297,1752850240333,-548.79775648,0.00016584,2]
[373059298,1752850240347,-460.0,0.00016584,2]
[373059299,1752850240357,-357.40843301,0.00016584,2]
[373059300,1752850240366,-460.0,0.00016584,2]
[373059301,1752850240376,-246.34051472,0.00016584,2]
[373059302,1752850240388,-213.65948528,0.00016584,2]
[373059304,1752850240398,-460.0,0.00016584,2]
[373059305,1752850240407,-460.0,0.00016584,2]
[373059307,1752850240417,-340.48075063,0.00016584,2]
[373059309,1752850240429,-119.51924937,0.00016584,2]
[373059311,1752850240439,-460.0,0.00016584,2]
[373059312,1752850240450,-460.0,0.00016584,2]
[373059313,1752850240459,-463.17452599,0.00016584,2]
[373059314,1752850240469,-329.90458581,0.00016584,2]
[373059315,1752850240495,-130.09541419,0.00016584,2]
[373059316,1752850240504,-460.0,0.00016584,2]
[373059317,1752850240514,-460.0,0.00016584,2]
[373059318,1752850240523,-466.9019437,0.00016584,2]
[373059319,1752850240533,-464.15528915,0.00016584,2]
[373059320,1752850240543,-460.0,0.00016584,2]
[373059321,1752850240552,-460.0,0.00016584,2]
[373059322,1752850240562,-460.0,0.00016584,2]
[373059323,1752850240572,-460.0,0.00016584,2]
[373059324,1752850240581,-460.87966923,0.00016584,2]
[373059326,1752850240592,-460.0,0.00016584,2]
[373059327,1752850240602,-460.0,0.00016584,2]
[373059328,1752850240612,-460.0,0.00016584,2]
[373059329,1752850240621,-460.0,0.00016584,2]
[373059330,1752850240631,-460.0,0.00016584,2]
[373059331,1752850240641,-460.0,0.00016584,2]
[373059332,1752850240650,-460.0,0.00016584,2]
[373059333,1752850240660,-460.0,0.00016584,2]
[373059334,1752850240670,-460.0,0.00016584,2]
[373059335,1752850240681,-460.0,0.00016584,2]
[373059336,1752850240691,-460.0,0.00016584,2]
[373059337,1752850240701,-460.0,0.00016584,2]
[373059339,1752850240710,-460.0,0.00016584,2]
[373059340,1752850240719,-460.0,0.00016584,2]
[373059342,1752850240729,-460.0,0.00016584,2]
[373059345,1752850240739,-460.0,0.00016584,2]
[373059347,1752850240749,-460.0,0.00016584,2]
[373059349,1752850240758,-460.0,0.00016584,2]
[373059350,1752850240767,-460.0,0.00016584,2]
[373059353,1752850240776,-460.0,0.00016584,2]
[373059354,1752850240786,-460.0,0.00016584,2]
[373059356,1752850240795,-196.0227969,0.00016584,2]
[373059358,1752850240805,-460.0,0.00016584,2]
[373059361,1752850240815,-460.0,0.00016584,2]
[373059363,1752850240825,-460.0,0.00016584,2]
[373059365,1752850240835,-460.0,0.00016584,2]
[373059367,1752850240845,-460.0,0.00016584,2]
[373059369,1752850240855,-460.0,0.00016584,2]
[373059370,1752850240864,-460.0,0.00016584,2]
[373059373,1752850240874,-460.0,0.00016584,2]
[373059374,1752850240884,-548.13864001,0.00016584,2]
[373059376,1752850240893,-460.0,0.00016584,2]
[373059377,1752850240903,-460.0,0.00016584,2]
[373059378,1752850240912,-460.0,0.00016584,2]
[373059379,1752850240922,-460.0,0.00016584,2]
[373059380,1752850240931,-460.0,0.00016584,2]
[373059382,1752850240941,-460.0,0.00016584,2]
[373059383,1752850240950,-460.0,0.00016584,2]
[373059384,1752850240959,-460.0,0.00016584,2]
[373059385,1752850240968,-460.0,0.00016584,2]
[373059386,1752850240977,-520.01,0.00016584,2]
[373059387,1752850240987,-460.0,0.00016584,2]
[373059388,1752850240995,-460.0,0.00016584,2]
[373059389,1752850241005,-586.59,0.00016584,2]
[373059390,1752850241014,-564.36,0.00016584,2]
[373059391,1752850241023,-460.0,0.00016584,2]
[373059392,1752850241033,-460.0,0.00016584,2]
[373059393,1752850241043,-460.0,0.00016584,2]
[373059394,1752850241055,-460.0,0.00016584,2]
[373059395,1752850241065,-460.0,0.00016584,2]
[373059396,1752850241075,-460.0,0.00016584,2]
[373059397,1752850241093,-332.00132822,0.00016584,2]
[373059399,1752850241104,-500.0,0.00016584,2]
[373059400,1752850241114,-500.0,0.00016584,2]
[373059401,1752850241125,-500.0,0.00016584,2]
[373059402,1752850241134,-500.0,0.00016584,2]
[373059403,1752850241144,-500.0,0.00016584,2]
[373059404,1752850241153,-500.0,0.00016584,2]
[373059405,1752850241163,-225.98244358,0.00016584,2]
[373059406,1752850241172,-460.0,0.00016585,2]
[373059407,1752850241182,-460.0,0.00016585,2]
[373059408,1752850241191,-415.37939533,0.00016585,2]
[373059409,1752850241201,-460.0,0.00016585,2]
[373059410,1752850241212,-460.0,0.00016585,2]
[373059411,1752850241221,-460.0,0.00016585,2]
[373059412,1752850241231,-460.0,0.00016585,2]
[373059413,1752850241240,-460.0,0.00016585,2]
[373059414,1752850241250,-460.0,0.00016585,2]
[373059415,1752850241260,-460.0,0.00016585,2]
[373059416,1752850241269,-1345.02,0.00016585,2]
[373059417,1752850241280,-460.0,0.00016585,2]
[373059418,1752850241290,-1038.02,0.00016585,2]
[373059419,1752850241300,-460.0,0.00016585,2]
[373059420,1752850241309,-460.0,0.00016585,2]
[373059421,1752850241319,-1235.08,0.00016585,2]
[373059423,1752850241328,-3124.76,0.00016585,2]
[373059425,1752850241340,-339.76,0.00016753,3]
[373059427,1752850241349,-460.0,0.0001676,2]
[373059429,1752850241360,-460.0,0.0001676,2]
[373059431,1752850241370,-376.8545382,0.0001676,2]
[373059433,1752850241380,-1007.19,0.0001676,2]
[373059435,1752850241389,-460.0,0.00016761,2]
[373059437,1752850241399,-465.7777132,0.00016761,2]
[373059439,1752850241409,-460.0,0.00016761,2]
[373059441,1752850241419,-460.0,0.00016761,2]
[373059443,1752850241428,-460.0,0.00016761,2]
[373059445,1752850241437,-460.0,0.00016761,2]
[373059448,1752850241447,-460.0,0.00016761,2]
[373059450,1752850241457,-460.0,0.00016761,2]
[373059452,1752850241466,-460.0,0.00016761,2]
[373059454,1752850241476,-460.0,0.00016761,2]
[373059456,1752850241485,-460.0,0.00016761,2]
[373059457,1752850241494,-460.0,0.00016761,2]
[373059460,1752850241504,-460.0,0.00016761,2]
[373059461,1752850241514,-460.0,0.00016761,2]
[373059463,1752850241523,-460.0,0.00016761,2]
[373059466,1752850241533,-460.0,0.00016761,2]
[373059468,1752850241543,-460.0,0.00016761,2]
[373059470,1752850241553,-460.0,0.00016761,2]
[373059472,1752850241562,-460.0,0.00016761,2]
[373059474,1752850241572,-582.19,0.00016761,2]
[373059476,1752850241581,-460.0,0.00016761,2]
[373059478,1752850241593,-460.0,0.00016761,2]
[373059480,1752850241602,-460.0,0.00016761,2]
[373059482,1752850241612,-460.0,0.00016761,2]
[373059484,1752850241622,-599.74,0.00016761,2]
[373059486,1752850241632,-460.0,0.00016761,2]
[373059488,1752850241641,-2937.29,0.00016761,2]
[373059490,1752850241651,-460.0,0.00016761,2]
[373059492,1752850241660,-460.0,0.00016761,2]
[373059494,1752850241670,-460.0,0.00016761,2]
[373059496,1752850241679,-460.0,0.00016761,2]
[373059498,1752850241690,-2129.85,0.00016761,2]
[373059500,1752850241699,-378.4,0.00016761,2]
[373059502,1752850241708,-460.0,0.00016761,2]
[373059504,1752850241718,-469.29,0.00016761,2]
[373059506,1752850241727,-460.0,0.00016761,2]
[373059508,1752850241737,-460.0,0.00016761,2]
[373059510,1752850241746,-1400.5,0.00016761,2]
[373059512,1752850241756,-460.0,0.00016761,2]
[373059514,1752850241766,-460.0,0.00016761,2]
[373059516,1752850241776,-460.0,0.00016761,2]
[373059518,1752850241786,-460.0,0.00016761,2]
[373059520,1752850241795,-460.0,0.00016761,2]
[373059522,1752850241805,-460.0,0.00016761,2]
[373059524,1752850241815,-460.0,0.00016761,2]
[373059526,1752850241824,-460.0,0.00016761,2]
[373059528,1752850241833,-3292.84,0.00016761,2]
[373059530,1752850241845,-460.0,0.00016761,2]
[373059532,1752850241854,-460.0,0.00016761,2]
[373059534,1752850241863,-460.0,0.00016761,2]
[373059536,1752850241873,-404.4552598,0.00016761,2]
[373059538,1752850241883,-460.0,0.00016761,2]
[373059540,1752850241892,-460.0,0.00016761,2]
[373059542,1752850241902,-460.0,0.00016761,2]
[373059544,1752850241912,-460.0,0.00016761,2]
[373059546,1752850241921,-939.17,0.00016761,2]
[373059548,1752850241930,-460.0,0.00016761,2]
[373059550,1752850241940,-460.0,0.00016761,2]
[373059552,1752850241950,-460.0,0.00016761,2]
[373059554,1752850241960,-460.0,0.00016761,2]
[373059556,1752850241969,-460.0,0.00016761,2]
[373059558,1752850241978,-460.0,0.00016761,2]
[373059560,1752850241988,-460.0,0.00016762,2]
[373059562,1752850241997,-460.0,0.00016762,2]
[373059564,1752850242006,-460.0,0.00016762,2]
[373059566,1752850242016,-460.0,0.00016762,2]
[373059568,1752850242026,-460.0,0.00016762,2]
[373059570,1752850242035,-460.0,0.00016762,2]
[373059572,1752850242045,-522.77,0.00016762,2]
[373059574,1752850242059,-460.0,0.00016762,2]
[373059576,1752850242069,-460.0,0.00016762,2]
[373059578,1752850242079,-2981.57,0.00016762,2]
[373059580,1752850242090,-1644.89,0.00016762,2]
[373059583,1752850242105,-691.94,0.00016762,2]
[373059585,1752850242114,-460.0,0.00016762,2]
[373059587,1752850242125,-506.74,0.00016762,2]
[373059589,1752850242135,-460.0,0.00016762,2]
[373059591,1752850242145,-460.0,0.00016762,2]
[373059593,1752850242154,-460.0,0.00016762,2]
[373059595,1752850242163,-460.0,0.00016762,2]
[373059597,1752850242173,-460.0,0.00016763,2]
[373059599,1752850242183,-460.0,0.00016763,2]
[373059601,1752850242193,-460.0,0.00016763,2]
[373059603,1752850242202,-460.0,0.00016763,2]
[373059605,1752850242212,-460.0,0.00016763,2]
[373059607,1752850242224,-460.0,0.00016763,2]
[373059609,1752850242234,-460.0,0.00016763,2]
[373059611,1752850242243,-460.0,0.00016763,2]
[373059613,1752850242253,-460.0,0.00016763,2]
[373059615,1752850242263,-460.0,0.00016763,2]
[373059617,1752850242273,-457.02277436,0.00016763,2]
[373059619,1752850242282,-460.0,0.00016763,2]
[373059621,1752850242292,-460.0,0.00016763,2]
[373059623,1752850242301,-460.0,0.00016763,2]
[373059625,1752850242311,-500.0,0.00016763,2]
[373059627,1752850242321,-460.0,0.00016763,2]
[373059629,1752850242331,-460.0,0.00016763,2]
[373059631,1752850242344,-460.0,0.00016763,2]
[373059633,1752850242354,-460.0,0.00016763,2]
[373059635,1752850242364,-460.0,0.00016763,2]
[373059637,1752850242374,-460.0,0.00016763,2]
[373059653,1752850242520,-460.0,0.00016763,2]
[373059655,1752850242530,-463.45438016,0.00016763,2]
[373059657,1752850242540,-460.0,0.00016764,2]
[373059659,1752850242549,-460.0,0.00016764,2]
[373059661,1752850242559,-460.0,0.00016764,2]
[373059663,1752850242568,-460.0,0.00016764,2]
[373059665,1752850242577,-460.0,0.00016764,2]
[373059667,1752850242586,-460.0,0.00016764,2]
[373059669,1752850242597,-460.0,0.00016764,2]
[373059671,1752850242606,-460.0,0.00016764,2]
[373059672,1752850242615,-460.0,0.00016764,2]
[373059674,1752850242624,-926.62,0.00016764,2]
[373059676,1752850242633,-460.0,0.00016858,2]
[373059679,1752850242643,-259.23235302,0.00016858,2]